[Event "*** Qualifier 1: Titled Tuesday 3|2 Blitz"]
[Site "Chess.com"]
[Date "2017.04.04"]
[Round "1"]
[White "platy3"]
[Black "oggy1984"]
[Result "1-0"]
[WhiteElo "2609"]
[BlackElo "2299"]
[TimeControl "180+2"]
[EndTime "13:11:30 PDT"]
[Termination "platy3 won on time"]

1. e4 {[%clk 0:03:02]} 1... c5 {[%clk 0:02:59.2]} 2. Nf3 {[%clk 0:03:02.2]} 2...
Nc6 {[%clk 0:02:59.9]} 3. Bb5 {[%clk 0:03:02.7]} 3... g6 {[%clk 0:02:59.9]} 4.
c3 {[%clk 0:03:03.5]} 4... Bg7 {[%clk 0:02:58.4]} 5. d4 {[%clk 0:03:04.4]} 5...
cxd4 {[%clk 0:02:56.2]} 6. cxd4 {[%clk 0:03:04.9]} 6... a6 {[%clk 0:02:46.1]} 7.
Ba4 {[%clk 0:02:53.4]} 7... b5 {[%clk 0:02:30.9]} 8. Bb3 {[%clk 0:02:49.6]} 8...
Bb7 {[%clk 0:02:07.1]} 9. O-O {[%clk 0:02:44.4]} 9... Na5 {[%clk 0:02:02.7]} 10.
Bc2 {[%clk 0:02:43]} 10... Nf6 {[%clk 0:02:02.3]} 11. Re1 {[%clk 0:02:26.7]}
11... O-O {[%clk 0:02:02]} 12. Bg5 {[%clk 0:02:05.3]} 12... Rc8 {[%clk 0:01:58]}
13. Nbd2 {[%clk 0:02:02.6]} 13... Nc4 {[%clk 0:01:49.9]} 14. Nxc4 {[%clk
0:01:58.1]} 14... Rxc4 {[%clk 0:01:49.5]} 15. Bd3 {[%clk 0:01:55]} 15... Rc8
{[%clk 0:01:47.6]} 16. Qd2 {[%clk 0:01:51.5]} 16... d5 {[%clk 0:01:42]} 17. Bxf6
{[%clk 0:01:52.4]} 17... Bxf6 {[%clk 0:01:41.4]} 18. e5 {[%clk 0:01:53.1]} 18...
Bg7 {[%clk 0:01:39.8]} 19. Rac1 {[%clk 0:01:53.8]} 19... Qd7 {[%clk 0:01:29.4]}
20. Qb4 {[%clk 0:01:43.7]} 20... Rxc1 {[%clk 0:01:18.8]} 21. Rxc1 {[%clk
0:01:44.1]} 21... Rc8 {[%clk 0:01:14.4]} 22. Rxc8+ {[%clk 0:01:30.3]} 22... Bxc8
{[%clk 0:01:14.8]} 23. Nd2 {[%clk 0:01:24.8]} 23... f6 {[%clk 0:01:02.7]} 24. f4
{[%clk 0:01:21.3]} 24... fxe5 {[%clk 0:01:01.6]} 25. fxe5 {[%clk 0:01:09.9]}
25... Qa7 {[%clk 0:00:50]} 26. Kf1 {[%clk 0:00:56.5]} 26... Bh6 {[%clk
0:00:38.5]} 27. Nb3 {[%clk 0:00:50.4]} 27... Qc7 {[%clk 0:00:18.5]} 28. a4
{[%clk 0:00:41]} 28... bxa4 {[%clk 0:00:18.1]} 29. Qxa4 {[%clk 0:00:42.9]} 29...
Kg7 {[%clk 0:00:18.1]} 30. Qe8 {[%clk 0:00:43]} 30... Be3 {[%clk 0:00:16]} 31.
Ke2 {[%clk 0:00:41.5]} 31... Bg1 {[%clk 0:00:15.5]} 32. h3 {[%clk 0:00:39.6]}
32... a5 {[%clk 0:00:15.1]} 33. Kf1 {[%clk 0:00:37.3]} 33... Be3 {[%clk
0:00:14.2]} 34. Ke2 {[%clk 0:00:38.1]} 34... Bg1 {[%clk 0:00:15.1]} 35. Qa4
{[%clk 0:00:38.5]} 35... Qb6 {[%clk 0:00:11.5]} 36. Kf1 {[%clk 0:00:20.3]} 36...
Be3 {[%clk 0:00:12.1]} 37. Ke2 {[%clk 0:00:21.5]} 37... Bg1 {[%clk 0:00:12.5]}
38. Qb5 {[%clk 0:00:15.4]} 38... Bxd4 {[%clk 0:00:09.1]} 39. Qxd5 {[%clk
0:00:16.4]} 39... Bg1 {[%clk 0:00:06.4]} 40. Nd2 {[%clk 0:00:07.9]} 40... Qe3+
{[%clk 0:00:06.9]} 41. Kd1 {[%clk 0:00:09.3]} 41... Bf2 {[%clk 0:00:06.2]} 42.
Bc4 {[%clk 0:00:06.4]} 42... Qe1+ {[%clk 0:00:06.1]} 43. Kc2 {[%clk 0:00:07.8]}
43... Bf5+ {[%clk 0:00:07.4]} 44. Kb3 {[%clk 0:00:08.7]} 44... Qd1+ {[%clk
0:00:06.9]} 45. Ka3 {[%clk 0:00:09.9]} 45... Be3 {[%clk 0:00:06.2]} 46. Nb3
{[%clk 0:00:08]} 46... Qb1 {[%clk 0:00:05.4]} 47. Qf7+ {[%clk 0:00:07.4]} 47...
Kh6 {[%clk 0:00:06]} 48. g4 {[%clk 0:00:09.1]} 48... Bc2 {[%clk 0:00:05.8]} 49.
h4 {[%clk 0:00:08.8]} 49... g5 {[%clk 0:00:04.8]} 50. Qh5+ {[%clk 0:00:08.2]}
50... Kg7 {[%clk 0:00:05.2]} 51. Qf7+ {[%clk 0:00:09.1]} 51... Kh6 {[%clk
0:00:06.7]} 52. hxg5+ {[%clk 0:00:10.5]} 52... Kxg5 {[%clk 0:00:06.7]} 53. Qxe7+
{[%clk 0:00:11.6]} 53... Kf4 {[%clk 0:00:07.1]} 54. Qf6+ {[%clk 0:00:11.5]}
54... Kg3 {[%clk 0:00:08]} 55. e6 {[%clk 0:00:12]} 55... Bxb3 {[%clk 0:00:08.6]}
56. Bxb3 {[%clk 0:00:05.2]} 56... Bc5+ {[%clk 0:00:08.8]} 57. Ka4 {[%clk
0:00:06.5]} 57... Qe4+ {[%clk 0:00:07.3]} 58. Kb5 {[%clk 0:00:04.8]} 58... Qb4+
{[%clk 0:00:07.2]} 59. Kc6 {[%clk 0:00:05.9]} 59... Qb6+ {[%clk 0:00:08.6]} 60.
Kd5 {[%clk 0:00:07.1]} 60... Qd6+ {[%clk 0:00:08.7]} 61. Kc4 {[%clk 0:00:08.5]}
61... Be3 {[%clk 0:00:07.4]} 62. Qc3 {[%clk 0:00:05]} 62... Qc5+ {[%clk
0:00:05.6]} 63. Kd3 {[%clk 0:00:06.6]} 63... Qxc3+ {[%clk 0:00:05.7]} 64. bxc3
{[%clk 0:00:06.6]} 64... Bc5 {[%clk 0:00:07]} 65. Bd1 {[%clk 0:00:08]} 65... Kf4
{[%clk 0:00:07.2]} 66. Kc4 {[%clk 0:00:08.6]} 66... Be7 {[%clk 0:00:07.9]} 67.
Kd5 {[%clk 0:00:10.2]} 67... Ke3 {[%clk 0:00:07.1]} 68. c4 {[%clk 0:00:11.2]}
68... Kd2 {[%clk 0:00:06.6]} 69. Ba4 {[%clk 0:00:12.4]} 69... Kc3 {[%clk
0:00:06.9]} 70. c5 {[%clk 0:00:13.9]} 70... Kb4 {[%clk 0:00:07.8]} 71. c6 {[%clk
0:00:15.5]} 1-0

[Event "*** Qualifier 1: Titled Tuesday 3|2 Blitz"]
[Site "Chess.com"]
[Date "2017.04.04"]
[Round "1"]
[White "jposthuma"]
[Black "SmoothAsAHedgehog"]
[Result "1-0"]
[WhiteElo "2245"]
[BlackElo "2525"]
[TimeControl "180+2"]
[EndTime "13:11:41 PDT"]
[Termination "jposthuma won by checkmate"]

1. b3 {[%clk 0:03:02]} 1... e5 {[%clk 0:02:57.9]} 2. Bb2 {[%clk 0:03:02.9]} 2...
Nc6 {[%clk 0:02:58.7]} 3. e3 {[%clk 0:03:04.2]} 3... Nf6 {[%clk 0:02:58.3]} 4.
Bb5 {[%clk 0:02:57]} 4... Bd6 {[%clk 0:02:59.2]} 5. Na3 {[%clk 0:02:23]} 5...
Na5 {[%clk 0:02:59.3]} 6. Nc4 {[%clk 0:02:05.4]} 6... Nxc4 {[%clk 0:02:59.8]} 7.
Bxc4 {[%clk 0:02:07.3]} 7... O-O {[%clk 0:02:58.2]} 8. d4 {[%clk 0:01:57.8]}
8... e4 {[%clk 0:02:55.9]} 9. Ne2 {[%clk 0:01:32.7]} 9... c6 {[%clk 0:02:55.5]}
10. Ng3 {[%clk 0:01:24.9]} 10... Bc7 {[%clk 0:02:54]} 11. d5 {[%clk 0:00:58.8]}
11... b5 {[%clk 0:02:50.5]} 12. Bxf6 {[%clk 0:00:45.1]} 12... Qxf6 {[%clk
0:02:49.1]} 13. Nxe4 {[%clk 0:00:46]} 13... Qg6 {[%clk 0:02:13.8]} 14. Bd3
{[%clk 0:00:31.4]} 14... Qxg2 {[%clk 0:01:58.2]} 15. Kd2 {[%clk 0:00:20.2]}
15... Qg6 {[%clk 0:01:18.6]} 16. Rg1 {[%clk 0:00:18.9]} 16... Qh6 {[%clk
0:01:20.2]} 17. Qg4 {[%clk 0:00:09.6]} 17... d6 {[%clk 0:00:58.9]} 18. Qg5
{[%clk 0:00:08.6]} 18... Qxg5 {[%clk 0:00:58.2]} 19. Nxg5 {[%clk 0:00:10.5]}
19... g6 {[%clk 0:00:59.4]} 20. dxc6 {[%clk 0:00:09.2]} 20... b4 {[%clk
0:00:58.5]} 21. Ne4 {[%clk 0:00:09.5]} 21... Kg7 {[%clk 0:00:55.7]} 22. a3
{[%clk 0:00:08.2]} 22... d5 {[%clk 0:00:54.5]} 23. Nc5 {[%clk 0:00:07.5]} 23...
bxa3 {[%clk 0:00:51.9]} 24. Rxa3 {[%clk 0:00:07.7]} 24... Bxh2 {[%clk
0:00:53.5]} 25. Rh1 {[%clk 0:00:06.6]} 25... Bd6 {[%clk 0:00:54.2]} 26. Ra5
{[%clk 0:00:07.4]} 26... Bc7 {[%clk 0:00:53]} 27. Raa1 {[%clk 0:00:07.1]} 27...
Bb6 {[%clk 0:00:52.7]} 28. Na4 {[%clk 0:00:05.8]} 28... Bc7 {[%clk 0:00:47]} 29.
Rag1 {[%clk 0:00:06.3]} 29... Be6 {[%clk 0:00:46.3]} 30. Nc5 {[%clk 0:00:06.3]}
30... Rfe8 {[%clk 0:00:45.1]} 31. f3 {[%clk 0:00:07.4]} 31... Bb6 {[%clk
0:00:45.2]} 32. Na4 {[%clk 0:00:07.4]} 32... Rec8 {[%clk 0:00:42.2]} 33. Nxb6
{[%clk 0:00:08.4]} 33... axb6 {[%clk 0:00:43.5]} 34. Bb5 {[%clk 0:00:10.3]}
34... Ra5 {[%clk 0:00:43.1]} 35. c4 {[%clk 0:00:11.4]} 35... dxc4 {[%clk
0:00:44.3]} 36. bxc4 {[%clk 0:00:13.3]} 36... Rd8+ {[%clk 0:00:44.7]} 37. Kc3
{[%clk 0:00:10.2]} 37... Ra3+ {[%clk 0:00:45.8]} 38. Kb4 {[%clk 0:00:11.3]}
38... Rxe3 {[%clk 0:00:46.3]} 39. Ba6 {[%clk 0:00:11.7]} 39... Rdd3 {[%clk
0:00:31.2]} 40. Rb1 {[%clk 0:00:03.1]} 40... Bf5 {[%clk 0:00:15.5]} 41. Rhe1
{[%clk 0:00:05]} 41... Rxf3 {[%clk 0:00:15.4]} 42. c7 {[%clk 0:00:05.3]} 42...
Rd4 {[%clk 0:00:16.4]} 43. Rbc1 {[%clk 0:00:05.7]} 43... Rdd3 {[%clk 0:00:16.2]}
44. Kb5 {[%clk 0:00:06]} 44... Bd7+ {[%clk 0:00:14.4]} 45. Kxb6 {[%clk
0:00:06.7]} 45... Rb3+ {[%clk 0:00:16]} 46. Kc5 {[%clk 0:00:07.9]} 46... Rf5+
{[%clk 0:00:15.8]} 47. Kd4 {[%clk 0:00:09.4]} 47... Rf4+ {[%clk 0:00:16.4]} 48.
Ke5 {[%clk 0:00:09.7]} 48... g5 {[%clk 0:00:17.8]} 49. c8=Q {[%clk 0:00:10.2]}
49... Bxc8 {[%clk 0:00:18.9]} 50. Bxc8 {[%clk 0:00:12.1]} 50... Rb8 {[%clk
0:00:19.4]} 51. Bh3 {[%clk 0:00:11]} 51... Rd8 {[%clk 0:00:20.4]} 52. Rg1 {[%clk
0:00:10.3]} 52... f6+ {[%clk 0:00:21.5]} 53. Ke6 {[%clk 0:00:10.9]} 53... Re4+
{[%clk 0:00:19.5]} 54. Kf5 {[%clk 0:00:11.5]} 54... Re5+ {[%clk 0:00:21.1]} 55.
Kg4 {[%clk 0:00:12.6]} 55... Rd4+ {[%clk 0:00:20.7]} 56. Kg3 {[%clk 0:00:13.6]}
56... Re3+ {[%clk 0:00:21.4]} 57. Kh2 {[%clk 0:00:15]} 57... h5 {[%clk
0:00:20.9]} 58. c5 {[%clk 0:00:14.7]} 58... g4 {[%clk 0:00:21.4]} 59. Bg2 {[%clk
0:00:15]} 59... Rd7 {[%clk 0:00:14.3]} 60. c6 {[%clk 0:00:15.9]} 60... Rc7
{[%clk 0:00:15.9]} 61. Rgd1 {[%clk 0:00:16.7]} 61... Ree7 {[%clk 0:00:15.6]} 62.
Rd6 {[%clk 0:00:15.7]} 62... Kg6 {[%clk 0:00:16.6]} 63. Rf1 {[%clk 0:00:16.2]}
63... Rf7 {[%clk 0:00:18]} 64. Bd5 {[%clk 0:00:16.7]} 64... Rf8 {[%clk
0:00:19.4]} 65. Rd7 {[%clk 0:00:18]} 65... Rfc8 {[%clk 0:00:15.1]} 66. Rd6
{[%clk 0:00:13.9]} 66... Rf8 {[%clk 0:00:15]} 67. Be4+ {[%clk 0:00:14]} 67...
Kg5 {[%clk 0:00:15.2]} 68. Rf5+ {[%clk 0:00:12.8]} 68... Kh4 {[%clk 0:00:16.2]}
69. Rdxf6 {[%clk 0:00:13.1]} 69... Re8 {[%clk 0:00:13.7]} 70. Rf4 {[%clk
0:00:05.7]} 70... Re5 {[%clk 0:00:11.1]} 71. R6f5 {[%clk 0:00:05.9]} 71... Re6
{[%clk 0:00:10.5]} 72. Rc5 {[%clk 0:00:06.8]} 72... Rd6 {[%clk 0:00:10.1]} 73.
Bd5 {[%clk 0:00:03.3]} 73... Kg5 {[%clk 0:00:06.9]} 74. Rd4 {[%clk 0:00:03.1]}
74... Kh4 {[%clk 0:00:08.2]} 75. Bf7 {[%clk 0:00:02.6]} 75... Rxd4 {[%clk
0:00:03.8]} 76. Rxh5# {[%clk 0:00:03.1]} 1-0

[Event "*** Qualifier 1: Titled Tuesday 3|2 Blitz"]
[Site "Chess.com"]
[Date "2017.04.04"]
[Round "1"]
[White "Gulkov_Igor"]
[Black "TenisMaster"]
[Result "0-1"]
[WhiteElo "2323"]
[BlackElo "2644"]
[TimeControl "180+2"]
[EndTime "13:12:18 PDT"]
[Termination "TenisMaster won by resignation"]

1. Nf3 {[%clk 0:03:02]} 1... d5 {[%clk 0:02:57.1]} 2. d4 {[%clk 0:03:02.3]} 2...
Nf6 {[%clk 0:02:57.3]} 3. c4 {[%clk 0:03:02.3]} 3... e6 {[%clk 0:02:57.9]} 4.
Nc3 {[%clk 0:03:03.1]} 4... c6 {[%clk 0:02:58.7]} 5. Bg5 {[%clk 0:03:03.3]} 5...
Nbd7 {[%clk 0:02:58.3]} 6. cxd5 {[%clk 0:03:03.5]} 6... exd5 {[%clk 0:02:56.5]}
7. e3 {[%clk 0:03:04.7]} 7... Be7 {[%clk 0:02:56.9]} 8. Qc2 {[%clk 0:02:56.6]}
8... Nh5 {[%clk 0:02:56.5]} 9. Bxe7 {[%clk 0:02:56.6]} 9... Qxe7 {[%clk
0:02:58.4]} 10. O-O-O {[%clk 0:02:57.5]} 10... Nb6 {[%clk 0:02:53.7]} 11. h3
{[%clk 0:02:54.5]} 11... g6 {[%clk 0:02:52.4]} 12. Bd3 {[%clk 0:02:54.6]} 12...
Be6 {[%clk 0:02:52.4]} 13. Kb1 {[%clk 0:02:52.6]} 13... O-O-O {[%clk 0:02:52.1]}
14. Rc1 {[%clk 0:02:49.5]} 14... Kb8 {[%clk 0:02:52.1]} 15. Na4 {[%clk
0:02:49.8]} 15... Nf6 {[%clk 0:02:44.2]} 16. Nc5 {[%clk 0:02:48.9]} 16... Rc8
{[%clk 0:01:58.4]} 17. Ne5 {[%clk 0:02:45.9]} 17... Nfd7 {[%clk 0:01:51.8]} 18.
Nexd7+ {[%clk 0:02:43.3]} 18... Nxd7 {[%clk 0:01:51.5]} 19. Nxd7+ {[%clk
0:02:40.9]} 19... Bxd7 {[%clk 0:01:51.8]} 20. h4 {[%clk 0:02:34.2]} 20... Rhf8
{[%clk 0:01:51.1]} 21. g3 {[%clk 0:02:34.1]} 21... Bg4 {[%clk 0:01:50.7]} 22.
Rhe1 {[%clk 0:02:30]} 22... Bf3 {[%clk 0:01:50.9]} 23. Qc5 {[%clk 0:02:27.8]}
23... Rfe8 {[%clk 0:01:50.1]} 24. Qxe7 {[%clk 0:02:26.9]} 24... Rxe7 {[%clk
0:01:52]} 25. b4 {[%clk 0:02:27.4]} 25... Re6 {[%clk 0:01:47.3]} 26. Kc2 {[%clk
0:02:26.9]} 26... Rf6 {[%clk 0:01:47.3]} 27. Kd2 {[%clk 0:02:22.4]} 27... Bg4
{[%clk 0:01:47.1]} 28. f4 {[%clk 0:02:22.6]} 28... h5 {[%clk 0:01:46.6]} 29. b5
{[%clk 0:02:17.6]} 29... cxb5 {[%clk 0:01:45.5]} 30. Bxb5 {[%clk 0:02:15.7]}
30... Rb6 {[%clk 0:01:45.3]} 31. Rxc8+ {[%clk 0:02:06.1]} 31... Bxc8 {[%clk
0:01:47.2]} 32. Rb1 {[%clk 0:02:06.3]} 32... Bf5 {[%clk 0:01:46.9]} 33. Rb3
{[%clk 0:02:05.6]} 33... a6 {[%clk 0:01:42]} 34. Be2 {[%clk 0:01:26.5]} 34...
Rc6 {[%clk 0:01:33.3]} 35. Rb2 {[%clk 0:01:26.2]} 35... Kc7 {[%clk 0:01:30.8]}
36. a3 {[%clk 0:01:23.9]} 36... b5 {[%clk 0:01:28.8]} 37. Bf3 {[%clk 0:01:10.9]}
37... Kd6 {[%clk 0:01:29.5]} 38. Be2 {[%clk 0:01:10.3]} 38... Be4 {[%clk
0:01:27.4]} 39. Bd1 {[%clk 0:01:00.4]} 39... Rb6 {[%clk 0:01:18.8]} 40. Be2
{[%clk 0:00:55.1]} 40... Kc6 {[%clk 0:01:18]} 41. Kc3 {[%clk 0:00:52.5]} 41...
a5 {[%clk 0:01:17.9]} 42. Bf1 {[%clk 0:00:50.1]} 42... Bf5 {[%clk 0:01:16.8]}
43. Be2 {[%clk 0:00:51.1]} 43... Bd7 {[%clk 0:01:17.5]} 44. Bf1 {[%clk
0:00:52.3]} 44... Kd6 {[%clk 0:01:18.4]} 45. Bd3 {[%clk 0:00:53]} 45... Rb8
{[%clk 0:01:19.2]} 46. Be2 {[%clk 0:00:52.8]} 46... Kc7 {[%clk 0:01:14.3]} 47.
Bd3 {[%clk 0:00:53.6]} 47... Kb6 {[%clk 0:01:14.4]} 48. Kd2 {[%clk 0:00:53.3]}
48... Rc8 {[%clk 0:01:15]} 49. Be2 {[%clk 0:00:53.8]} 49... Rc7 {[%clk
0:01:11.8]} 50. Bd3 {[%clk 0:00:55.1]} 50... Rb7 {[%clk 0:01:00.6]} 51. Be2
{[%clk 0:00:56.1]} 51... Kc6 {[%clk 0:01:01.1]} 52. Bd3 {[%clk 0:00:57.4]} 52...
Kd6 {[%clk 0:01:01.1]} 53. Kc3 {[%clk 0:00:58.1]} 53... Rc7+ {[%clk 0:00:59.8]}
54. Kd2 {[%clk 0:00:58.9]} 54... Rb7 {[%clk 0:01:00.3]} 55. Kc3 {[%clk
0:01:00.1]} 55... Kc6 {[%clk 0:01:00.1]} 56. Be2 {[%clk 0:00:59.8]} 56... Bf5
{[%clk 0:00:58.7]} 57. Bf1 {[%clk 0:01:00.8]} 57... Bg4 {[%clk 0:00:57.2]} 58.
Bd3 {[%clk 0:01:01.7]} 58... Bd1 {[%clk 0:00:57.8]} 59. Kd2 {[%clk 0:01:00.5]}
59... Ba4 {[%clk 0:00:58.2]} 60. Kc3 {[%clk 0:01:01.7]} 60... Kb6 {[%clk
0:00:58.1]} 61. Be2 {[%clk 0:00:58]} 61... Rc7+ {[%clk 0:00:59]} 62. Kd2 {[%clk
0:00:59.3]} 62... Kc6 {[%clk 0:00:58.9]} 63. Bd3 {[%clk 0:00:59.8]} 63... Rb7
{[%clk 0:00:59]} 64. Kc3 {[%clk 0:01:00.1]} 64... Bd1 {[%clk 0:00:58.1]} 65. Kd2
{[%clk 0:01:00.5]} 65... Bg4 {[%clk 0:00:57.9]} 66. Kc3 {[%clk 0:01:01.8]} 66...
Bf5 {[%clk 0:00:57.3]} 67. Be2 {[%clk 0:01:02.1]} 67... Bd7 {[%clk 0:00:51.6]}
68. Bd3 {[%clk 0:01:02.2]} 68... Kd6 {[%clk 0:00:50.9]} 69. Be2 {[%clk
0:01:03.3]} 69... Kc6 {[%clk 0:00:46.4]} 70. Bd3 {[%clk 0:01:04.2]} 70... Kb6
{[%clk 0:00:46.7]} 71. Be2 {[%clk 0:01:04.6]} 71... Rc7+ {[%clk 0:00:46.7]} 72.
Kd2 {[%clk 0:01:05.1]} 72... a4 {[%clk 0:00:47.8]} 73. Rc2 {[%clk 0:00:53.2]}
73... Rxc2+ {[%clk 0:00:37.2]} 74. Kxc2 {[%clk 0:00:54.3]} 74... b4 {[%clk
0:00:38.6]} 75. axb4 {[%clk 0:00:55.2]} 75... Bb5 {[%clk 0:00:40.2]} 76. Bf3
{[%clk 0:00:51.8]} 76... Bc4 {[%clk 0:00:41.2]} 77. Kc3 {[%clk 0:00:51]} 77...
a3 {[%clk 0:00:40.5]} 78. e4 {[%clk 0:00:51.3]} 78... a2 {[%clk 0:00:40.4]} 79.
Kb2 {[%clk 0:00:52.1]} 79... dxe4 {[%clk 0:00:32.6]} 80. Bxe4 {[%clk 0:00:53.2]}
80... Kb5 {[%clk 0:00:34]} 81. f5 {[%clk 0:00:53.2]} 81... gxf5 {[%clk
0:00:25.3]} 82. Bxf5 {[%clk 0:00:54.3]} 82... Kxb4 {[%clk 0:00:26.2]} 83. g4
{[%clk 0:00:55.8]} 83... Be2 {[%clk 0:00:24.1]} 84. gxh5 {[%clk 0:00:42.2]}
84... Bxh5 {[%clk 0:00:24.5]} 85. Kxa2 {[%clk 0:00:41.3]} 85... Kc4 {[%clk
0:00:25.7]} 86. Kb2 {[%clk 0:00:40.5]} 86... Kxd4 {[%clk 0:00:26.8]} 87. Kc1
{[%clk 0:00:41.8]} 87... Ke3 {[%clk 0:00:26.8]} 88. Kc2 {[%clk 0:00:40.2]} 88...
Bg6 {[%clk 0:00:26.5]} 89. Bxg6 {[%clk 0:00:38]} 89... fxg6 {[%clk 0:00:28.1]}
90. Kd1 {[%clk 0:00:36]} 90... Kf2 {[%clk 0:00:28.1]} 91. Kd2 {[%clk 0:00:29.5]}
91... Kg3 {[%clk 0:00:28.9]} 0-1

[Event "*** Qualifier 1: Titled Tuesday 3|2 Blitz"]
[Site "Chess.com"]
[Date "2017.04.04"]
[Round "1"]
[White "plouarzel"]
[Black "justantan"]
[Result "1-0"]
[WhiteElo "2379"]
[BlackElo "1925"]
[TimeControl "180+2"]
[EndTime "13:13:24 PDT"]
[Termination "plouarzel won by resignation"]

1. d4 {[%clk 0:03:02]} 1... Nf6 {[%clk 0:03:00.3]} 2. Nc3 {[%clk 0:03:02.1]}
2... d5 {[%clk 0:03:01.1]} 3. e4 {[%clk 0:02:59.4]} 3... dxe4 {[%clk 0:03:00.7]}
4. f3 {[%clk 0:02:54.2]} 4... exf3 {[%clk 0:03:01.4]} 5. Nxf3 {[%clk 0:02:56.1]}
5... c6 {[%clk 0:03:02]} 6. Bc4 {[%clk 0:02:56.3]} 6... Bf5 {[%clk 0:03:02.7]}
7. O-O {[%clk 0:02:57.3]} 7... e6 {[%clk 0:03:01.2]} 8. Ng5 {[%clk 0:02:58]}
8... Bg6 {[%clk 0:02:57.7]} 9. Ne2 {[%clk 0:02:58.9]} 9... Bd6 {[%clk
0:02:55.1]} 10. Nf4 {[%clk 0:02:57.9]} 10... Bxf4 {[%clk 0:02:47.2]} 11. Bxf4
{[%clk 0:02:25.3]} 11... Nbd7 {[%clk 0:02:46.2]} 12. Bxe6 {[%clk 0:02:22]} 12...
fxe6 {[%clk 0:02:44.9]} 13. Nxe6 {[%clk 0:02:23.9]} 13... Qb6 {[%clk 0:02:45.2]}
14. Qe2 {[%clk 0:01:58.6]} 14... Ne4 {[%clk 0:02:02.9]} 15. Rae1 {[%clk
0:01:11.2]} 15... Ndf6 {[%clk 0:01:53.3]} 16. Nc7+ {[%clk 0:00:51.2]} 16... Kd7
{[%clk 0:01:53.6]} 17. Nxa8 {[%clk 0:00:49.1]} 17... Rxa8 {[%clk 0:01:51.3]} 18.
Be5 {[%clk 0:00:49.4]} 18... Re8 {[%clk 0:01:47.1]} 19. Kh1 {[%clk 0:00:45.4]}
19... Qa6 {[%clk 0:00:55.2]} 20. Qf3 {[%clk 0:00:29.5]} 20... Qc4 {[%clk
0:00:32.3]} 21. c3 {[%clk 0:00:19.5]} 21... Nd2 {[%clk 0:00:28.7]} 22. Qh3+
{[%clk 0:00:20.3]} 22... Qe6 {[%clk 0:00:30.4]} 23. Qxe6+ {[%clk 0:00:20.3]}
23... Rxe6 {[%clk 0:00:32.3]} 24. Rf2 {[%clk 0:00:10.8]} 24... Nc4 {[%clk
0:00:29.9]} 25. Rfe2 {[%clk 0:00:10.8]} 25... Bd3 {[%clk 0:00:30.1]} 26. Rf2
{[%clk 0:00:08.4]} 26... Bg6 {[%clk 0:00:25.9]} 27. b3 {[%clk 0:00:08.3]} 27...
Ng4 {[%clk 0:00:21]} 28. Rfe2 {[%clk 0:00:08]} 28... Ncxe5 {[%clk 0:00:19.7]}
29. dxe5 {[%clk 0:00:08.6]} 29... Bd3 {[%clk 0:00:20.4]} 30. Rd1 {[%clk
0:00:06.7]} 30... Rd6 {[%clk 0:00:19.5]} 31. Red2 {[%clk 0:00:04.2]} 31... Nxe5
{[%clk 0:00:20.6]} 32. Kg1 {[%clk 0:00:04]} 32... c5 {[%clk 0:00:21.5]} 33. c4
{[%clk 0:00:04.6]} 33... Kc7 {[%clk 0:00:22.5]} 34. Kf2 {[%clk 0:00:06.1]} 34...
Rd4 {[%clk 0:00:23.8]} 35. Ke3 {[%clk 0:00:07.2]} 35... Ng4+ {[%clk 0:00:25]}
36. Kf3 {[%clk 0:00:05.7]} 36... Ne5+ {[%clk 0:00:25.1]} 37. Ke3 {[%clk
0:00:06.8]} 37... Re4+ {[%clk 0:00:24]} 38. Kf2 {[%clk 0:00:08.3]} 38... Ng4+
{[%clk 0:00:22.5]} 39. Kg3 {[%clk 0:00:08.5]} 39... Be2 {[%clk 0:00:21.7]} 40.
Rd7+ {[%clk 0:00:07.4]} 40... Kb6 {[%clk 0:00:22]} 41. R1d6+ {[%clk 0:00:08.3]}
41... Ka5 {[%clk 0:00:22.4]} 42. Rxb7 {[%clk 0:00:07.5]} 42... g5 {[%clk
0:00:21.5]} 43. Rf7 {[%clk 0:00:03.4]} 43... Re3+ {[%clk 0:00:21.8]} 44. Rf3
{[%clk 0:00:05.1]} 44... Bxf3 {[%clk 0:00:23.3]} 45. gxf3 {[%clk 0:00:07]} 45...
Ne5 {[%clk 0:00:24.7]} 46. Rf6 {[%clk 0:00:07.3]} 46... g4 {[%clk 0:00:24.9]}
47. Rh6 {[%clk 0:00:07.2]} 47... Rxf3+ {[%clk 0:00:26.2]} 48. Kg2 {[%clk
0:00:09.1]} 48... Rf7 {[%clk 0:00:26.5]} 49. Re6 {[%clk 0:00:09.7]} 49... Nd3
{[%clk 0:00:27.7]} 50. Rc6 {[%clk 0:00:08.9]} 50... Kb4 {[%clk 0:00:28.1]} 51.
Kg3 {[%clk 0:00:09.3]} 51... Ka3 {[%clk 0:00:28.9]} 52. Ra6+ {[%clk 0:00:10.3]}
52... Kb4 {[%clk 0:00:28.5]} 53. Kxg4 {[%clk 0:00:12.2]} 53... Rf2 {[%clk
0:00:29]} 54. h4 {[%clk 0:00:12.1]} 54... Ne5+ {[%clk 0:00:27.9]} 55. Kg3 {[%clk
0:00:12.7]} 55... Rf3+ {[%clk 0:00:28.5]} 56. Kg2 {[%clk 0:00:14.1]} 56... Rf7
{[%clk 0:00:28.8]} 57. Kh3 {[%clk 0:00:15.1]} 57... h5 {[%clk 0:00:28.3]} 58.
Kg3 {[%clk 0:00:16.1]} 58... Rf3+ {[%clk 0:00:27.9]} 59. Kg2 {[%clk 0:00:17.2]}
59... Rf4 {[%clk 0:00:29.3]} 60. Kg3 {[%clk 0:00:18.1]} 60... Rg4+ {[%clk
0:00:30.9]} 61. Kh3 {[%clk 0:00:19.5]} 61... Nd3 {[%clk 0:00:31.1]} 62. Rxa7
{[%clk 0:00:19.1]} 62... Nf4+ {[%clk 0:00:29]} 63. Kh2 {[%clk 0:00:19.9]} 63...
Rxh4+ {[%clk 0:00:30.8]} 64. Kg3 {[%clk 0:00:21.4]} 64... Rg4+ {[%clk
0:00:32.4]} 65. Kf3 {[%clk 0:00:22.5]} 65... Nd3 {[%clk 0:00:33.3]} 66. Rh7
{[%clk 0:00:21.4]} 66... Ne5+ {[%clk 0:00:33.1]} 67. Ke3 {[%clk 0:00:17.9]}
67... h4 {[%clk 0:00:34.6]} 68. Re7 {[%clk 0:00:17.4]} 68... Nc6 {[%clk
0:00:34.7]} 69. Rh7 {[%clk 0:00:18]} 69... Nd4 {[%clk 0:00:34.5]} 70. Rb7+
{[%clk 0:00:17.4]} 70... Kc3 {[%clk 0:00:34.7]} 71. Rc7 {[%clk 0:00:18]} 71...
h3 {[%clk 0:00:34.3]} 72. Rh7 {[%clk 0:00:17.8]} 72... Rg3+ {[%clk 0:00:26.3]}
73. Kf4 {[%clk 0:00:17.7]} 73... Ne2+ {[%clk 0:00:25]} 74. Ke5 {[%clk
0:00:17.6]} 74... Ng1 {[%clk 0:00:23]} 75. Kd5 {[%clk 0:00:17.9]} 75... Rg2
{[%clk 0:00:22.9]} 76. Kxc5 {[%clk 0:00:19.3]} 76... Rxa2 {[%clk 0:00:23]} 77.
b4 {[%clk 0:00:19.3]} 77... h2 {[%clk 0:00:23.9]} 78. b5 {[%clk 0:00:20.7]}
78... Nf3 {[%clk 0:00:23.6]} 79. b6 {[%clk 0:00:22.1]} 79... Rb2 {[%clk
0:00:21.4]} 80. Rh3 {[%clk 0:00:16.9]} 80... Kd2 {[%clk 0:00:20.4]} 81. Kc6
{[%clk 0:00:12.9]} 81... Ne5+ {[%clk 0:00:20.8]} 82. Kd5 {[%clk 0:00:12.5]}
82... Ng4 {[%clk 0:00:19.6]} 83. c5 {[%clk 0:00:11.4]} 83... Rb3 {[%clk
0:00:19]} 84. Rh4 {[%clk 0:00:10.5]} 84... Rd3+ {[%clk 0:00:19.5]} 85. Kc6
{[%clk 0:00:07.9]} 85... Ne5+ {[%clk 0:00:18.2]} 86. Kb7 {[%clk 0:00:09.1]}
86... Nf3 {[%clk 0:00:17]} 87. Rh3 {[%clk 0:00:08.1]} 87... Rd7+ {[%clk
0:00:14.9]} 88. Kc8 {[%clk 0:00:08.6]} 88... Rf7 {[%clk 0:00:13]} 89. b7 {[%clk
0:00:07.8]} 89... Rf8+ {[%clk 0:00:13.3]} 90. Kc7 {[%clk 0:00:08.8]} 90... Rf7+
{[%clk 0:00:14.5]} 91. Kb6 {[%clk 0:00:10.2]} 91... Rf6+ {[%clk 0:00:12.7]} 92.
c6 {[%clk 0:00:11.4]} 92... Rf8 {[%clk 0:00:06.7]} 93. c7 {[%clk 0:00:12.2]}
93... Ne5 {[%clk 0:00:06.1]} 94. Rxh2+ {[%clk 0:00:12.2]} 94... Kd3 {[%clk
0:00:06.9]} 95. c8=Q {[%clk 0:00:12.9]} 95... Nc4+ {[%clk 0:00:08.2]} 96. Kc5
{[%clk 0:00:11.9]} 1-0